fUST/lending_fUST_20240908
["ID","MTS","AMOUNT","RATE_DAILY","PERIOD"]
[337553863,1725807044172,-500.0,0.00047671,120]
[337553865,1725807044182,-1248.38,0.00047671,120]
[337553867,1725807044193,-500.0,0.00047671,120]
[337553868,1725807044203,-547.45,0.00047671,120]
[337553869,1725807044215,-2137.92,0.00047671,120]
[337553870,1725807044225,-500.0,0.00047671,120]
[337553871,1725807044236,-500.0,0.00047671,120]
[337553872,1725807044248,-504.03105899,0.00047671,120]
[337553873,1725807044259,-500.0,0.00047671,120]
[337553874,1725807044270,-500.0,0.00047671,120]
[337553875,1725807044281,-500.0,0.00047671,120]
[337553876,1725807044291,-500.0,0.00047671,120]
[337553877,1725807044301,-500.0,0.00047671,120]
[337553878,1725807044312,-500.0,0.00047671,120]
[337553879,1725807044323,-500.0,0.00047671,7]
[337553880,1725807044334,-500.0,0.00047671,120]
[337553881,1725807044345,-507.85717543,0.00047671,120]
[337553882,1725807044357,-500.0,0.00047671,120]
[337553883,1725807044367,-500.0,0.00047671,120]
[337553884,1725807044376,-500.0,0.00047671,120]
[337553885,1725807044387,-500.0,0.00047671,120]
[337553886,1725807044398,-511.13028951,0.00047671,120]
[337553887,1725807044407,-500.0,0.00047671,120]
[337553888,1725807044417,-500.0,0.00047671,120]
[337553889,1725807044428,-500.0,0.00047671,120]
[337553890,1725807044437,-695.21,0.00047671,120]
[337553891,1725807044447,-500.0,0.00047671,120]
[337553892,1725807044457,-500.0,0.00047671,120]
[337553893,1725807044468,-1010.36,0.00047671,120]
[337553894,1725807044478,-500.0,0.00047671,120]
[337553895,1725807044488,-500.0,0.00047671,120]
[337553896,1725807044498,-500.0,0.00047671,120]
[337553897,1725807044764,-500.0,0.00047671,120]
[337553898,1725807044774,-500.0,0.00047671,120]
[337553899,1725807044784,-500.0,0.00047671,120]
[337553900,1725807044794,-4295.94,0.00047671,120]
[337553901,1725807044803,-500.0,0.00047671,120]
[337553902,1725807044812,-500.0,0.00047671,120]
[337553903,1725807044821,-500.0,0.00047671,120]
[337553904,1725807044830,-500.0,0.00047671,120]
[337553905,1725807044839,-500.0,0.00047671,120]
[337553906,1725807044848,-500.0,0.00047671,120]
[337553907,1725807044858,-500.0,0.00047671,120]
[337553908,1725807044867,-500.0,0.00047671,120]
[337553909,1725807044879,-500.0,0.00047671,120]
[337553910,1725807044888,-902.12,0.00047671,120]
[337553911,1725807044897,-507.31483808,0.00047671,120]
[337553912,1725807044906,-928.57,0.00047671,120]
[337553913,1725807044915,-687.45,0.00047671,120]
[337553914,1725807044923,-500.0,0.00047671,120]
[337553915,1725807044935,-611.11,0.00047671,120]
[337553916,1725807044945,-500.0,0.00047671,120]
[337553917,1725807044955,-1215.21,0.00047671,120]
[337553918,1725807044965,-507.59723379,0.00047671,120]
[337553919,1725807044974,-500.0,0.00047671,120]
[337553920,1725807044983,-500.0,0.00047671,120]
[337553921,1725807044993,-511.27,0.00047671,120]
[337553922,1725807045002,-500.0,0.00047671,120]
[337553923,1725807045012,-1142.94,0.00047671,120]
[337553924,1725807045022,-660.43,0.00047671,120]
[337553925,1725807045033,-1323.55,0.00047671,120]
[337553926,1725807045042,-500.0,0.00047671,30]
[337553927,1725807045052,-500.0,0.00047671,120]
[337553928,1725807045061,-500.0,0.00047671,120]
[337553929,1725807045070,-500.0,0.00047671,120]
[337553930,1725807045080,-500.0,0.00047671,120]
[337553931,1725807045090,-1386.32,0.00047671,120]
[337553932,1725807045100,-500.0,0.00047671,2]
[337553933,1725807045110,-566.18,0.00047671,120]
[337553934,1725807045120,-500.0,0.00047671,120]
[337553935,1725807045130,-530.57,0.00047671,120]
[337553936,1725807045140,-500.0,0.00047671,120]
[337553937,1725807045150,-700.57,0.00047671,120]
[337553938,1725807045160,-1575.72,0.00047671,120]
[337553939,1725807045170,-200.0,0.00047671,120]
[337553940,1725807045180,-32062.03,0.00047671,120]
[337553941,1725807045189,-4584.27,0.00047671,120]
[337553942,1725807045199,-500.0,0.00047671,120]
[337553943,1725807045208,-696.63,0.00047671,120]
[337553944,1725807045218,-500.0,0.00047671,120]
[337553945,1725807045227,-504.28,0.00047671,120]
[337553946,1725807045237,-500.0,0.00047671,120]
[337553947,1725807045246,-500.0,0.00047671,120]
[337553948,1725807045256,-946.3,0.00047671,120]
[337553949,1725807045265,-602.33404168,0.00047671,60]
[337553950,1725807045276,-500.0,0.00047671,120]
[337553951,1725807045285,-500.0,0.00047671,120]
[337553952,1725807045294,-797.66,0.00047671,30]
[337553953,1725807045304,-1041.0,0.00047671,120]
[337553954,1725807045313,-10544.84,0.00047671,120]
[337553955,1725807045323,-500.0,0.00047671,120]
[337553956,1725807045332,-521.51,0.00047671,120]
[337553957,1725807045342,-500.0,0.00047671,120]
[337553958,1725807045352,-216.81555469,0.00047671,120]
[337553959,1725807045361,-500.0,0.00047671,120]
[337553960,1725807045371,-726.47,0.00047671,120]
[337553961,1725807045383,-500.0,0.00047671,120]
[337553962,1725807045393,-500.0,0.00047671,120]
[337553963,1725807045404,-500.0,0.00047671,120]
[337553964,1725807045415,-500.0,0.00047671,120]
[337553965,1725807045426,-500.0,0.00047671,120]
[337553966,1725807045437,-500.0,0.00047671,120]
[337553967,1725807045447,-500.0,0.00047671,120]
[337553968,1725807045456,-1216.85,0.00047671,120]
[337553969,1725807045466,-500.0,0.00047671,120]
[337553970,1725807045476,-514.94,0.00047671,120]
[337553971,1725807045487,-9032.09,0.00047671,120]
[337553972,1725807045499,-1119.29,0.00047671,120]
[337553973,1725807045510,-500.0,0.00047671,120]
[337553974,1725807045520,-236.27109718,0.00047671,120]
[337553975,1725807045530,-2109.36,0.00047671,120]
[337553976,1725807045539,-500.0,0.00047671,120]
[337553977,1725807045550,-706.61,0.00047671,120]
[337553978,1725807045560,-1343.32,0.00047671,21]
[337553979,1725807045571,-500.0,0.00047671,120]
[337553980,1725807045580,-500.0,0.00047671,120]
[337553981,1725807045589,-500.0,0.00047671,7]
[337553982,1725807045598,-1025.4577173,0.00047671,120]
[337553998,1725807045937,-272.93949044,0.00047671,120]
[337553999,1725807045949,-1989.46279226,0.00047671,120]
[337554000,1725807045961,-1187.88,0.00047671,120]
[337554001,1725807045971,-1757.49,0.00047671,120]
[337554002,1725807045980,-500.0,0.00047671,120]
[337554003,1725807045990,-500.0,0.00047671,120]
[337554004,1725807045999,-1933.53,0.00047671,120]
[337554005,1725807046009,-500.0,0.00047671,120]
[337554006,1725807046018,-398.81473862,0.00047671,120]
[337554007,1725807046028,-550.71,0.00047671,120]
[337554008,1725807046038,-500.0,0.00047671,120]
[337554009,1725807046048,-500.0,0.00047671,120]
[337554010,1725807046058,-506.33959585,0.00047671,120]
[337554011,1725807046067,-1247.9,0.00047671,120]
[337554012,1725807046078,-1089.33,0.00047671,120]
[337554013,1725807046087,-5005.02,0.00047671,120]
[337554014,1725807046097,-719.67,0.00047671,120]
[337554015,1725807046107,-500.0,0.00047671,120]
[337554016,1725807046116,-500.0,0.00047671,120]
[337554017,1725807046127,-500.0,0.00047671,120]
[337554018,1725807046138,-1993.82,0.00047671,120]
[337554019,1725807046148,-910.21,0.00047671,120]
[337554020,1725807046158,-507.88903502,0.00047671,120]
[337554021,1725807046168,-500.0,0.00047671,120]
[337554022,1725807046177,-2601.52,0.00047671,120]
[337554023,1725807046187,-3014.51,0.00047671,120]
[337554024,1725807046198,-500.0,0.00047671,120]
[337554025,1725807046210,-500.0,0.00047671,120]
[337554026,1725807046220,-500.0,0.00047671,120]
[337554027,1725807046231,-952.69,0.00047671,120]
[337554028,1725807046240,-1501.9,0.00047671,120]
[337554029,1725807046250,-666.22,0.00047671,120]
[337554030,1725807046259,-1935.62,0.00047671,120]
[337554031,1725807046268,-500.0,0.00047671,120]
[337554032,1725807046278,-500.0,0.00047671,120]
[337554033,1725807046289,-1076.47,0.00047671,120]
[337554034,1725807046299,-500.0,0.00047671,120]
[337554035,1725807046310,-561.2,0.00047671,120]
[337554036,1725807046321,-500.0,0.00047671,120]
[337554037,1725807046331,-796.49,0.00047671,120]
[337554038,1725807046341,-508.47038141,0.00047671,120]
[337554039,1725807046353,-500.0,0.00047671,120]
[337554040,1725807046363,-4443.16,0.00047671,120]
[337554041,1725807046372,-500.0,0.00047671,120]
[337554042,1725807046382,-500.0,0.00047671,120]
[337554043,1725807046391,-500.0,0.00047671,120]
[337554044,1725807046401,-500.0,0.00047671,120]
[337554045,1725807046410,-450.43285032,0.00047671,120]
[337554046,1725807046419,-500.0,0.00047671,120]
[337554047,1725807046430,-500.0,0.00047671,120]
[337554048,1725807046439,-500.0,0.00047671,120]
[337554049,1725807046448,-631.53352623,0.00047671,120]
[337554050,1725807046457,-500.0,0.00047671,120]
[337554051,1725807046467,-500.0,0.00047671,120]
[337554052,1725807046476,-1135.56,0.00047671,120]
[337554053,1725807046486,-500.0,0.00047671,120]
[337554054,1725807046495,-1900.74,0.00047671,120]
[337554055,1725807046505,-500.0,0.00047671,120]
[337554056,1725807046515,-500.0,0.00047671,120]
[337554057,1725807046524,-500.0,0.00047671,120]
[337554058,1725807046535,-684.74,0.00047671,120]
[337554059,1725807046545,-500.0,0.00047671,120]
[337554060,1725807046556,-500.0,0.00047671,120]
[337554061,1725807046566,-500.0,0.00047671,120]
[337554062,1725807046575,-500.0,0.00047671,120]
[337554063,1725807046584,-500.0,0.00047671,120]
[337554064,1725807046594,-500.0,0.00047671,30]
[337554065,1725807046603,-500.0,0.00047671,120]
[337554066,1725807046613,-7107.21,0.00047671,120]
[337554067,1725807046622,-500.0,0.00047671,120]
[337554068,1725807046631,-500.0,0.00047671,120]
[337554069,1725807046643,-4898.22,0.00047671,120]
[337554070,1725807046655,-500.0,0.00047671,120]
[337554071,1725807046664,-500.0,0.00047671,120]
[337554072,1725807046673,-500.0,0.00047671,120]
[337554073,1725807046682,-500.0,0.00047671,120]
[337554075,1725807046693,-500.0,0.00047671,120]
[337554077,1725807046702,-500.0,0.00047671,120]
[337554079,1725807046711,-500.0,0.00047671,120]
[337554081,1725807046721,-6607.04,0.00047671,120]
[337554082,1725807046731,-500.0,0.00047671,120]
[337554083,1725807046740,-962.13,0.00047671,120]
[337554084,1725807046749,-500.0,0.00047671,120]
[337554085,1725807046758,-737.6,0.00047671,120]
[337554086,1725807046768,-781.84,0.00047671,120]
[337554087,1725807046778,-500.0,0.00047671,120]
[337554088,1725807046787,-864.98,0.00047671,120]
[337554089,1725807046796,-500.0,0.00047671,120]
[337554090,1725807046805,-500.0,0.00047671,120]
[337554091,1725807046816,-500.0,0.00047671,120]
[337554092,1725807046825,-508.02956426,0.00047671,120]
[337554093,1725807046835,-500.0,0.00047671,120]
[337554094,1725807046845,-980.18,0.00047671,120]
[337554095,1725807046856,-1090.37,0.00047671,120]
[337554096,1725807046866,-501.52798247,0.00047671,120]
[337554097,1725807046878,-500.0,0.00047671,120]
[337554098,1725807046888,-874.96,0.00047671,120]
[337554099,1725807046898,-688.39,0.00047671,120]
[337554100,1725807046907,-500.0,0.00047671,120]
[337554101,1725807046916,-896.38,0.00047671,120]
[337554103,1725807046925,-501.55856227,0.00047673,10]
[337554104,1725807046935,-150.112233,0.000477,13]
[337554106,1725807046944,-175.16168,0.000479,14]
[337554107,1725807046955,-2234.63489086,0.00047963,28]
[337554108,1725807046964,-150.112233,0.00048,12]
[337554110,1725807046973,-150.112233,0.000481,12]
[337554111,1725807046983,-150.112233,0.000482,14]
[337554112,1725807046992,-128.18475017,0.000483,11]
[337554114,1725807048399,-150.0,0.00046575,30]
[337554115,1725807048410,-300.346,0.00046575,30]
[337554116,1725807048419,-21.92748283,0.000483,11]
[337554117,1725807048429,-150.112233,0.000485,13]
[337554118,1725807048439,-150.112233,0.000485,14]
[337554119,1725807048449,-500.0,0.00048767,120]
[337554120,1725807048459,-200.0,0.00048767,7]
[337554121,1725807048469,-500.0,0.00048767,120]
[337554122,1725807048479,-500.0,0.00048767,120]
[337554123,1725807048489,-762.69,0.00048767,120]
[337554124,1725807048499,-500.0,0.00048767,120]
[337554125,1725807048509,-500.0,0.00048767,120]
[337554126,1725807048519,-500.0,0.00048767,120]
[337554127,1725807048528,-500.0,0.00048767,120]
[337554128,1725807048538,-1123.57,0.00048767,120]
[337554129,1725807048548,-500.0,0.00048767,120]
[337554130,1725807048557,-500.0,0.00048767,120]
[337554131,1725807048568,-803.75,0.00048767,120]
[337554132,1725807048577,-500.0,0.00048767,120]
[337554133,1725807048587,-500.0,0.00048767,120]
[337554134,1725807048597,-500.0,0.00048767,120]
[337554135,1725807048607,-621.6551167,0.00048767,120]
[337554136,1725807048618,-500.0,0.00048767,120]
[337554137,1725807048628,-500.0,0.00048767,120]
[337554138,1725807048638,-500.0,0.00048767,120]
[337554139,1725807048649,-500.0,0.00048767,120]
[337554140,1725807048660,-565.16,0.00048767,120]
[337554141,1725807048671,-712.34,0.00048767,120]
[337554142,1725807048682,-500.0,0.00048767,120]
[337554143,1725807048692,-945.68,0.00048767,120]
[337554144,1725807048702,-634.16,0.00048767,120]
[337554145,1725807048712,-500.0,0.00048767,120]
[337554146,1725807048723,-500.0,0.00048767,120]
[337554147,1725807048734,-937.02,0.00048767,120]
[337554148,1725807048746,-551.15269097,0.00048767,120]
[337554149,1725807048756,-500.0,0.00048767,120]
[337554150,1725807048767,-500.0,0.00048767,120]
[337554151,1725807048780,-1339.26,0.00048767,120]
[337554152,1725807048790,-500.0,0.00048767,120]
[337554153,1725807048800,-500.0,0.00048767,120]
[337554154,1725807048810,-500.0,0.00048767,120]
[337554155,1725807048820,-500.0,0.00048767,120]
[337554156,1725807048829,-500.0,0.00048767,120]
[337554157,1725807048840,-500.0,0.00048767,120]
[337554158,1725807048850,-500.0,0.00048767,120]
[337554159,1725807048859,-500.0,0.00048767,120]
[337554160,1725807048869,-500.0,0.00048767,120]
[337554161,1725807048882,-888.63,0.00048767,120]
[337554162,1725807048892,-500.0,0.00048767,120]
[337554163,1725807048902,-500.0,0.00048767,120]
[337554164,1725807048911,-500.0,0.00048767,120]
[337554165,1725807048921,-500.0,0.00048767,120]
[337554166,1725807048930,-500.0,0.00048767,120]
[337554167,1725807048940,-500.0,0.00048767,120]
[337554168,1725807048950,-189.59284541,0.00048767,120]
[337554169,1725807048959,-1124.39,0.00048767,120]
[337554170,1725807048969,-518.70270092,0.00048767,120]
[337554171,1725807048979,-534.66,0.00048767,120]
[337554172,1725807048989,-500.0,0.00048767,120]
[337554173,1725807049000,-759.6,0.00048767,30]
[337554174,1725807049009,-500.0,0.00048767,120]
[337554175,1725807049019,-500.0,0.00048767,120]
[337554176,1725807049030,-500.0,0.00048767,120]
[337554177,1725807049050,-500.0,0.00048767,120]
[337554178,1725807049060,-607.64,0.00048767,120]
[337554179,1725807049071,-695.06,0.00048767,120]
[337554180,1725807049081,-500.0,0.00048767,120]
[337554181,1725807049091,-500.0,0.00048767,120]
[337554182,1725807049101,-995.35,0.00048767,120]
[337554183,1725807049110,-490.15754159,0.00048767,120]
[337554184,1725807049119,-500.0,0.00048767,120]
[337554185,1725807049128,-500.0,0.00048767,120]
[337554186,1725807049137,-500.0,0.00048767,120]
[337554187,1725807049147,-500.0,0.00048767,120]
[337554188,1725807049157,-816.65,0.00048767,120]
[337554189,1725807049167,-500.0,0.00048767,120]
[337554190,1725807049177,-582.17,0.00048767,120]
[337554191,1725807049187,-500.0,0.00048767,120]
[337554192,1725807049196,-500.0,0.00048767,2]
[337554193,1725807049205,-657.74,0.00048767,120]
[337554194,1725807049215,-500.0,0.00048767,120]
[337554195,1725807049226,-500.0,0.00048767,120]
[337554196,1725807049237,-500.0,0.00048767,120]
[337554197,1725807049247,-500.0,0.00048767,120]
[337554198,1725807049256,-500.0,0.00048767,120]
[337554199,1725807049265,-562.65263271,0.00048767,120]
[337554200,1725807049275,-83.71484819,0.00048767,120]
[337554201,1725807049294,-416.28515181,0.00048767,120]
[337554202,1725807049303,-500.0,0.00048767,120]
[337554203,1725807049313,-500.0,0.00048767,120]
[337554204,1725807049323,-500.0,0.00048767,120]
[337554205,1725807049333,-500.0,0.00048767,120]
[337554206,1725807049343,-500.0,0.00048767,120]
[337554207,1725807049353,-500.0,0.00048767,120]
[337554208,1725807049363,-500.0,0.00048767,120]
[337554209,1725807049372,-500.0,0.00048767,120]
[337554210,1725807049382,-500.0,0.00048767,120]
[337554211,1725807049392,-500.0,0.00048767,120]
[337554212,1725807049402,-500.0,0.00048767,120]
[337554213,1725807049412,-1248.38,0.00048767,120]
[337554214,1725807049423,-500.0,0.00048767,120]
[337554215,1725807049432,-547.45,0.00048767,120]
[337554216,1725807049441,-2137.92,0.00048767,120]
[337554217,1725807049451,-636.04536198,0.00048767,120]
[337554218,1725807049461,-500.0,0.00048767,120]
[337554219,1725807049470,-500.0,0.00048767,120]
[337554220,1725807049482,-181.2994255,0.00048767,120]
[337554221,1725807049491,-500.0,0.00048767,120]
[337554222,1725807049501,-500.0,0.00048767,120]
[337554223,1725807049510,-500.0,0.00048767,120]
[337554224,1725807049520,-500.0,0.00048767,120]
[337554225,1725807049535,-500.0,0.00048767,7]
[337554226,1725807049545,-500.0,0.00048767,120]
[337554227,1725807049554,-500.0,0.00048767,120]
[337554228,1725807049564,-316.1829415,0.00048767,120]
[337554229,1725807049573,-500.0,0.00048767,120]
[337554230,1725807049583,-500.0,0.00048767,120]
[337554231,1725807049593,-500.0,0.00048767,120]
[337554232,1725807049603,-500.0,0.00048767,120]
[337554233,1725807049612,-500.0,0.00048767,120]
[337554234,1725807049622,-695.21,0.00048767,120]
[337554235,1725807049632,-500.0,0.00048767,120]
[337554236,1725807049643,-500.0,0.00048767,120]
[337554237,1725807049654,-1010.36,0.00048767,120]
[337554238,1725807049664,-500.0,0.00048767,120]
[337554239,1725807049674,-258.50992756,0.00048767,120]
[337554240,1725807049683,-500.0,0.00048767,120]
[337554241,1725807049694,-500.0,0.00048767,120]
[337554242,1725807049705,-500.0,0.00048767,120]
[337554243,1725807049715,-4295.94,0.00048767,120]
[337554244,1725807049724,-500.0,0.00048767,120]
[337554245,1725807049734,-500.0,0.00048767,120]
[337554246,1725807049744,-500.0,0.00048767,120]
[337554247,1725807049754,-500.0,0.00048767,120]
[337554248,1725807049763,-500.0,0.00048767,120]
[337554249,1725807049774,-509.17327708,0.00048767,120]
[337554250,1725807049784,-500.0,0.00048767,120]
[337554251,1725807049795,-500.0,0.00048767,120]
[337554252,1725807049805,-50.69647653,0.00048767,120]
[337554253,1725807049818,-449.30352347,0.00048767,120]
[337554254,1725807049828,-500.0,0.00048767,120]
[337554255,1725807049837,-902.12,0.00048767,120]
[337554256,1725807049847,-928.57,0.00048767,120]
[337554257,1725807049857,-687.45,0.00048767,120]
[337554258,1725807049867,-500.0,0.00048767,120]
[337554259,1725807049878,-611.11,0.00048767,120]
[337554260,1725807049888,-500.0,0.00048767,120]
[337554261,1725807049898,-1215.21,0.00048767,120]
[337554262,1725807049907,-500.0,0.00048767,120]
[337554263,1725807049919,-500.0,0.00048767,120]
[337554264,1725807049928,-511.27,0.00048767,120]
[337554265,1725807049938,-500.0,0.00048767,120]
[337554266,1725807049948,-1142.94,0.00048767,120]
[337554267,1725807049959,-660.43,0.00048767,120]
[337554268,1725807049969,-1323.55,0.00048767,120]
[337554269,1725807049978,-500.0,0.00048767,30]
[337554270,1725807049988,-500.0,0.00048767,120]
[337554271,1725807049999,-500.0,0.00048767,120]
[337554272,1725807050008,-500.0,0.00048767,120]
[337554273,1725807050018,-500.0,0.00048767,120]
[337554274,1725807050027,-1386.32,0.00048767,120]
[337554275,1725807050038,-500.0,0.00048767,2]
[337554276,1725807050047,-566.18,0.00048767,120]
[337554277,1725807050058,-500.0,0.00048767,120]
[337554278,1725807050068,-530.57,0.00048767,120]
[337554279,1725807050080,-514.32818944,0.00048767,120]
[337554280,1725807050089,-700.57,0.00048767,120]
[337554281,1725807050100,-1575.72,0.00048767,120]
[337554282,1725807050110,-200.0,0.00048767,120]
[337554283,1725807050154,-24544.97127435,0.00048767,120]
[337554284,1725807050167,-2755.0,0.00048767,120]
[337554285,1725807050207,-98.51956985,0.00048767,120]
[337554286,1725807050611,-322.19,0.00047661,3]
[337554287,1725807050623,-4663.5391558,0.00048767,120]
[337554288,1725807050632,-494.2708442,0.00048767,120]
[337554289,1725807050740,-1917.85337303,0.00048767,120]
[337554292,1725807128301,-155.38,0.00046565,3]
[337554293,1725807128327,-841.97,0.00046575,120]
[337554294,1725807128354,-1213.03,0.00046575,120]
[337554295,1725807128379,-819.9,0.00046575,120]
[337554296,1725807128405,-500.0,0.00046575,120]
[337554297,1725807128430,-983.84,0.00046575,120]
[337554298,1725807128457,-20485.88,0.00046575,120]
[337554299,1725807129194,-7568.4,0.00046575,120]
[337554300,1725807129223,-500.0,0.00046575,120]
[337554301,1725807129250,-500.0,0.00046575,120]
[337554302,1725807129277,-1158.1,0.00046575,120]
[337554303,1725807129302,-200.0,0.00046575,7]
[337554304,1725807129328,-3758.94,0.00046575,120]
[337554305,1725807129354,-500.0,0.00046575,120]
[337554306,1725807129382,-531.68,0.00046575,120]
[337554307,1725807129407,-1171.85,0.00046575,120]
[337554308,1725807129435,-4101.74,0.00046575,120]
[337554309,1725807129462,-1378.76,0.00046575,120]
[337554310,1725807129488,-3630.53,0.00046575,120]
[337554311,1725807130096,-6035.57,0.00046575,120]
[337554312,1725807130124,-500.0,0.00046575,120]
[337554313,1725807130151,-500.0,0.00046575,120]
[337554314,1725807130177,-500.0,0.00046575,120]
[337554315,1725807130204,-500.0,0.00046575,120]
[337554316,1725807130231,-867.44,0.00046575,120]
[337554317,1725807130258,-500.0,0.00046575,120]
[337554318,1725807130283,-380.21671776,0.00046575,120]
[337554319,1725807130308,-667.36,0.00046575,120]
[337554320,1725807130334,-665.93,0.00046575,120]
[337554321,1725807130361,-500.0,0.00046575,120]
[337554322,1725807130385,-500.0,0.00046575,120]
[337554323,1725807130411,-8279.42,0.00046575,120]
[337554324,1725807130439,-1115.44,0.00046575,120]
[337554325,1725807130465,-500.0,0.00046575,120]
[337554326,1725807130491,-613.81099057,0.00046575,120]
[337554327,1725807130516,-500.0,0.00046575,120]
[337554328,1725807130541,-500.0,0.00046575,120]
[337554329,1725807130566,-500.0,0.00046575,120]
[337554330,1725807130593,-500.0,0.00046575,120]
[337554331,1725807130619,-242.59,0.00047661,3]
[337554332,1725807130644,-132.22229167,0.00047671,120]
[337554333,1725807131296,-2021.47,0.00046575,120]
[337554334,1725807131322,-709.74770833,0.00047671,120]
[337554335,1725807131348,-1213.03,0.00047671,120]
[337554336,1725807131375,-819.9,0.00047671,120]
[337554337,1725807131400,-500.0,0.00047671,120]
[337554338,1725807131424,-983.84,0.00047671,120]
[337554339,1725807131450,-18752.01229167,0.00047671,120]
[337554345,1725807428721,-202.16,0.00046565,3]
[337554346,1725807428752,-168.47,0.00046565,3]
[337554347,1725807428781,-842.36,0.00046565,3]
[337554348,1725807428810,-384.17125513,0.00046574,120]
[337554349,1725807428838,-500.0,0.00046575,120]
[337554350,1725807428866,-500.0,0.00046575,120]
[337554351,1725807428895,-983.13,0.00046575,120]
[337554352,1725807428922,-500.0,0.00046575,120]
[337554353,1725807428949,-500.0,0.00046575,120]
[337554354,1725807428975,-500.0,0.00046575,120]
[337554355,1725807429000,-500.0,0.00046575,2]
[337554356,1725807429030,-500.0,0.00046575,120]
[337554357,1725807429056,-500.0,0.00046575,120]
[337554358,1725807429083,-500.0,0.00046575,120]
[337554359,1725807429113,-500.0,0.00046575,120]
[337554360,1725807429141,-500.0,0.00046575,120]
[337554361,1725807429169,-2384.72,0.00046575,120]
[337554362,1725807429197,-500.0,0.00046575,120]
[337554363,1725807429225,-500.0,0.00046575,120]
[337554364,1725807429252,-500.0,0.00046575,120]
[337554365,1725807429278,-500.0,0.00046575,120]
[337554366,1725807429305,-500.0,0.00046575,120]
[337554367,1725807429331,-393.44686546,0.00046575,120]
[337554368,1725807429359,-500.0,0.00046575,120]
[337554369,1725807429387,-500.0,0.00046575,120]
[337554370,1725807429415,-703.28,0.00046575,120]
[337554371,1725807429445,-1092.33,0.00046575,120]
[337554372,1725807429473,-664.65,0.00046575,30]
[337554373,1725807429500,-500.0,0.00046575,120]
[337554374,1725807429528,-514.44,0.00046575,120]
[337554375,1725807429554,-500.0,0.00046575,120]
[337554376,1725807429583,-608.18,0.00046575,120]
[337554377,1725807429612,-500.0,0.00046575,120]
[337554378,1725807429639,-500.0,0.00046575,120]
[337554379,1725807429666,-500.0,0.00046575,120]
[337554380,1725807429694,-714.57,0.00046575,120]
[337554381,1725807429721,-1040.93,0.00046575,120]
[337554382,1725807429748,-500.0,0.00046575,120]
[337554383,1725807429775,-500.0,0.00046575,120]
[337554384,1725807429801,-509.4,0.00046575,120]
[337554385,1725807429828,-500.0,0.00046575,120]
[337554386,1725807429857,-627.68,0.00046575,120]
[337554387,1725807429886,-166.08187941,0.00046575,120]
[337554388,1725807430055,-333.91812059,0.00046575,120]
[337554389,1725807430084,-500.0,0.00046575,120]
[337554390,1725807430115,-500.0,0.00046575,120]
[337554391,1725807430144,-623.3,0.00046575,120]
[337554392,1725807430173,-575.52,0.00046575,120]
[337554393,1725807430203,-500.0,0.00046575,120]
[337554394,1725807430231,-500.0,0.00046575,120]